Cogmind - Beta 13 @@@ ROGUE MODE // 2024.07.25 @ 14:58:07 Player: BigChungusGaming Result: Destroyed by MJ-K52(R) with Subdweller Machine Gun Performance ------------- Evolutions (0) 0 Regions Visited (2) 400 Robots Destroyed (17) 85 Value Destroyed (428) 428 Prototype IDs (0) 0 Alien Tech Used (0) 0 Bonus (-7) -7 TOTAL SCORE: 906 Bonus ------- Friendly Fire -7 Cogmind --------- Core Integrity 0/250 Matter 8/300 Energy 100/100 System Corruption 0% Temperature Cool (0) Movement Core (400) Ox7 Location -10/Subcaves Parts ------- > --- POWER (1) -------- (None) > --- PROPULSION (2) --- (None) > --- UTILITY (2) ------ Medium Storage Unit Makeshift Light Armor Plating > --- WEAPON (2) ------- Subdweller Shrapnel Launcher > --- INVENTORY (10) --- Light Ion Engine Carbon-fiber Leg Large Battery (200) Scrap Shield Subdweller Beam Cannon Subdweller Beam Cannon Subdweller Machine Gun Subdweller Shrapnel Launcher Peak State ------------ > --- POWER ------------ Light Ion Engine > --- PROPULSION ------- Aluminum Leg > --- UTILITY ---------- Medium Storage Unit Makeshift Light Armor Plating > --- WEAPON ----------- Bore Cannon Subdweller Shrapnel Launcher > --- INVENTORY -------- Carbon-fiber Leg Large Battery Seismic Detector Scrap Shield Subdweller Beam Cannon Subdweller Beam Cannon Subdweller Machine Gun Subdweller Shrapnel Launcher [Rating: 15] Favorites ----------- Power Light Ion Engine Engine Light Ion Engine Propulsion Aluminum Leg Treads Light Treads Leg Aluminum Leg Utility Medium Storage Unit Device Terrain Scanner Storage Medium Storage Unit Processor Targeting Computer Protection Makeshift Light Armor Plating Weapon Light Assault Rifle Energy Gun Riot Gun Ballistic Gun Light Assault Rifle Ballistic Cannon Bore Cannon Launcher Subdweller Shrapnel Launcher Build | -11 -10 -10 ------- Run | Yrd Mat Sub Slots Evolved . | . . . Power . | . . . Propulsion . | . . . Utility . | . . . Weapon . | . . . Parts Attached 26 | 6 8 12 Power 4 | 1 . 3 Engine 4 | 1 . 3 Core . | . . . Reactor . | . . . Propulsion 5 | 2 1 2 Treads 3 | 2 1 . Leg 2 | . . 2 Wheel . | . . . Hover . | . . . Flight . | . . . Utility 6 | 1 4 1 Device 1 | . 1 . Storage 2 | 1 1 . Processor 2 | . 2 . Hackware . | . . . Protection 1 | . . 1 Artifact . | . . . Weapon 11 | 2 3 6 Energy Gun 4 | 1 2 1 Energy Cannon . | . . . Ballistic Gun 4 | 1 1 2 Ballistic Cannon 1 | . . 1 Launcher 2 | . . 2 Special Weapon . | . . . Impact Weapon . | . . . Slashing Weapon . | . . . Piercing Weapon . | . . . Special Melee Weapon . | . . . Unidentified Prototypes . | . . . Parts Lost 6 | . 1 5 Power 1 | . . 1 Propulsion 1 | . . 1 Utility . | . . . Weapon 4 | . 1 3 Highest Loss Streak 3 | . 1 3 To Critical Strikes . | . . . Average Slot Usage (%) 93 | . 94 93 Engine 13 | . 14 13 Treads 6 | . 24 . Leg 16 | . . 22 Device 1 | . 3 . Storage 14 | . 14 14 Processor 8 | . 8 8 Protection 3 | . . 5 Energy Gun 5 | . 10 4 Ballistic Gun 12 | . 17 11 Ballistic Cannon 4 | . . 5 Launcher 4 | . . 6 Naked Turns . | . . . Heaviest Build 34 | 13 19 34 Greatest Support 40 | 40 40 20 Greatest Overweight (x) 10 | . . 10 Average Overweight (x) . | . . . Largest Inventory Capacity 10 | 8 10 10 Average Capacity 9 | 7 9 10 Most Carried 10 | 6 10 10 Average Carried 8 | 4 8 9 Final Capacity 10 | 8 10 10 Final Carried 9 | 6 9 9 Class Distribution -------------------- 100% | Mutant Dominant Class ---------------- Mutant | -10/Materials Mutant | -10/Subcaves Resources | -11 -10 -10 ----------- Run | Yrd Mat Sub Matter Collected 682 | 192 188 302 Remotely . | . . . Salvage Created 479 | . 258 221 Parts 27 | . 16 11 Haulers Intercepted . | . . . Recyclers Shooed . | . . . Parts Field Recycled . | . . . Retrieved Matter . | . . . Parts Self-Destructed 4 | . . 4 Prevented . | . . . Kills | -11 -10 -10 ------- Run | Yrd Mat Sub Combat Hostiles Destroyed 15 | . 8 7 Guns 9 | . 8 1 Cannons 2 | . . 2 AOE 4 | . . 4 Classes Destroyed 5 | . 4 1 Worker 1 | . 1 . Recycler 1 | . 1 . Swarmer 6 | . 6 . Grunt 2 | . 2 . Subdweller 7 | . . 7 Best Kill Streak 5 | . 5 2 Combat Bots Only 3 | . 3 2 Max Kills in Single Turn 2 | . 2 2 Gunslinging . | . . . Exploded 2 | . . 2 Melee . | . . . Uniques/NPCs Destroyed . | . . . Combat | -11 -10 -10 -------- Run | Yrd Mat Sub Hostile Shots Fired 116 | . 70 46 Missed 41 | . 25 16 Damage Taken 1384 | . 456 928 Core 274 | . 80 194 Absorbed by Shields . | . . . Regen/Repaired (Parts) 115 | . 115 . Core Remaining (%) 100 | 100 . . Volleys Fired 77 | . 35 42 Largest 2 | . 2 2 Hottest 97 | . 85 97 Shots Fired 131 | . 64 67 Gun 94 | . 64 30 Cannon 17 | . . 17 Launcher 20 | . . 20 Special . | . . . Kinetic 98 | . 45 53 Thermal 13 | . 13 . Explosive 8 | . . 8 Electromagnetic 12 | . 6 6 Robot Hit Streak 16 | . 7 16 Robot Miss Streak 4 | . 4 2 Penetration Max . | . . . Secondary Targets 2 | . 2 . Max Gunslinging Chain 1 | . 1 . Shots Hit Robots 86 | . 37 49 Core Hits 30 | . 17 13 Critical Kills 2 | . . 2 Critical Parts Destroyed . | . . . Critical Strikes 6 | . . 6 Destroy 6 | . . 6 Melee Attacks . | . . . Impact . | . . . Slashing . | . . . Piercing . | . . . Sneak Attacks . | . . . Combat Hostiles . | . . . Follow-up Attacks . | . . . Damage Inflicted 1820 | . 470 1350 Guns 558 | . 362 196 Cannons 226 | . . 226 Explosions 1036 | . 108 928 Melee . | . . . Ramming . | . . . Kinetic 1236 | . 247 989 Thermal 189 | . 189 . Explosive 351 | . . 351 Electromagnetic 44 | . 34 10 Impact . | . . . Slashing . | . . . Piercing . | . . . Highest Corruption . | . . . Average Corruption . | . . . Corruption Purged . | . . . Corruption Blocked . | . . . Overload Shots . | . . . Overflow Damage 26 | . 22 4 Projectiles . | . . . Explosions 26 | . 22 4 Melee . | . . . Knockbacks 2 | . . 2 Impact . | . . . Kinetic 2 | . . 2 Secondary . | . . . Self-Inflicted Damage 123 | . 40 83 Shots 5 | . 1 4 Rammed . | . . . Targets Rammed . | . . . Kicked . | . . . Crushed . | . . . Highest Temperature 190 | . 190 6 Average Temperature 56 | . 60 3 Received Heat Transfer 210 | . 66 144 Siege Activations . | . . . Robots Corrupted . | . . . Combat Hostiles . | . . . Parts Fried . | . . . Impact Corruptions . | . . . Robots Melted . | . . . Combat Hostiles . | . . . Parts Melted 1 | . . 1 Heat Transferred 372 | . 372 . Parts Sabotaged . | . . . Parts Stolen . | . . . Parts Stripped . | . . . Power Chain Reactions 1 | . 1 . Alert | -11 -10 -10 ------- Run | Yrd Mat Sub Peak Influence 192 | . 192 . Initial . | . . . Average 64 | . 71 . Maximum Alert Level . | . . . Low Security (%) 100 | 100 100 . Level 1 . | . . . Level 2 . | . . . Level 3 . | . . . Level 4 . | . . . Level 5 . | . . . High Security . | . . . Max Security . | . . . Squads Dispatched . | . . . Investigation . | . . . Extermination . | . . . Reinforcement . | . . . Assault . | . . . Garrison . | . . . Intercept . | . . . Searches Triggered . | . . . Construction Impeded . | . . . Haulers Reinforced . | . . . Active Scanning Responses . | . . . Cargo Convoy Interrupts . | . . . Stealth | -11 -10 -10 --------- Run | Yrd Mat Sub Distress Signals 2 | . 2 . Communications Jammed . | . . . Distress Signals . | . . . Times Spotted 38 | . 23 15 Peak Tracking Total 5 | . 5 5 Tactical Retreats 1 | . 1 . Traps | -11 -10 -10 ------- Run | Yrd Mat Sub Traps Triggered 2 | . . 2 Indirectly . | . . . Trap Hack Attempts . | . . . Triggered . | . . . Disarmed . | . . . Reprogrammed . | . . . Reused . | . . . Traps Extracted . | . . . Installed . | . . . Triggered . | . . . Machines | -11 -10 -10 ---------- Run | Yrd Mat Sub Machines Disabled 1 | . 1 . Max in Single Turn 1 | . 1 . Machines Repaired . | . . . Machines Dismantled . | . . . Machines Sabotaged . | . . . Overloaded Fab Kills . | . . . Hacking | -11 -10 -10 --------- Run | Yrd Mat Sub Machines Accessed 8 | . 7 1 Terminals 6 | . 6 . Fabricators . | . . . Repair Stations 1 | . 1 . Recycling Units . | . . . Scanalyzers . | . . . Garrison Access . | . . . Total Hacks 21 | . 19 2 Successful 12 | . 10 2 Failed 9 | . 9 . Catastrophic . | . . . Database Lockouts . | . . . Manual . | . . . Terminals 15 | . 15 . Fabricators . | . . . Repair Stations 4 | . 4 . Recycling Units . | . . . Scanalyzers . | . . . Garrison Access . | . . . Terminal Hacks 9 | . 7 2 Record 3 | . 1 2 Locate Traps 2 | . 2 . Dispatch Records 1 | . 1 . Maintenance Status 1 | . 1 . Investigation Status 1 | . 1 . Zone Layout 1 | . 1 . Fabricator Hacks . | . . . Repair Station Hacks 3 | . 3 . Scan Component 2 | . 2 . Repair 1 | . 1 . Recycling Unit Hacks . | . . . Scanalyzer . | . . . Garrison Access Hacks . | . . . Unauthorized Hacks . | . . . Terminals . | . . . Fabricators . | . . . Repair Stations . | . . . Recycling Units . | . . . Scanalyzers . | . . . Garrison Access . | . . . Data Cores Recovered . | . . . Used . | . . . Hacking Detections 6 | . 6 . Full Trace Events 1 | . 1 . Feedback Events . | . . . Feedback Blocked . | . . . Robot Schematics Acquired . | . . . Robots Built . | . . . Authchips . | . . . Time . | . . . Total Robot Build Rating . | . . . Part Schematics Acquired . | . . . Parts Built . | . . . Authchips . | . . . Time . | . . . Total Part Build Rating . | . . . Parts Repaired 1 | . 1 . Time 26 | . 26 . Parts Recycled . | . . . Recycled Matter . | . . . Retrieved Matter . | . . . Retrieved Components . | . . . Parts Scanalyzed . | . . . Part Schematics Acquired . | . . . Parts Damaged . | . . . Bothacking | -11 -10 -10 ------------ Run | Yrd Mat Sub Used RIF Installer . | . . . Robots Hacked . | . . . Non-combat . | . . . Combat . | . . . Robot Hacks Applied . | . . . Relay Couplers Released . | . . . Fabnet Peak Effective % . | . . . Robots Rewired . | . . . Allies Hacked . | . . . Hacks Repelled . | . . . Allies | -11 -10 -10 -------- Run | Yrd Mat Sub Total Allies . | . . . Largest Group . | . . . Highest-Rated Group . | . . . Highest-Rated Ally . | . . . Total Orders . | . . . Ally Attacks . | . . . Total Damage . | . . . Kills . | . . . Allies Corrupted . | . . . Allies Melted . | . . . Intel | -11 -10 -10 ------- Run | Yrd Mat Sub Robot Analysis Total . | . . . Derelict Logs Recovered 3 | . . 3 Drone Launches . | . . . Drone Recoveries . | . . . Exploration | -11 -10 -10 ------------- Run | Yrd Mat Sub Turns Passed 4562 | 137 1173 3252 Spaces Moved 2592 | 81 648 1863 Core 8 | 6 . 2 Treads 731 | 75 648 8 Legs 1853 | . . 1853 Wheels . | . . . Hover . | . . . Flight . | . . . Fastest Speed 50 | 50 160 120 Average Speed 164 | 151 160 166 Slowest Speed 550 | 160 160 550 Overloaded Moves . | . . . Propulsion Burnouts . | . . . Robots Hopped . | . . . Cave-ins Triggered . | . . . Exploration Rate (%) 54 | 4 89 69 Regions Visited 2 Branch Regions 1 Pre-discovered Areas 3 | . . 3 Known Exits Taken . | . . . Unknown Exits Taken 2 | 1 1 . Scrap Searched 6 | . . 6 Spaces Dug 13 | . . 13 Terrain Destroyed 188 | . 2 186 Melee . | . . . Projectile 7 | . . 7 AOE 181 | . 2 179 Terrain Rammed . | . . . Walls Destroyed . | . . . Machines Disabled . | . . . Actions | -11 -10 -10 --------- Run | Yrd Mat Sub Total 2774 | 93 730 1951 Wait 36 | . 26 10 Move 2590 | 80 647 1863 Hop . | . . . Pick Up 23 | 7 7 9 Fast Attach 14 | 5 5 4 Attach 7 | 1 3 3 Detach 2 | . . 2 Swap 5 | . . 5 Drop 20 | . 7 13 Fire 77 | . 35 42 Melee . | . . . Ram . | . . . Kick . | . . . Crush . | . . . Escape Stasis . | . . . Rewire . | . . . Trap . | . . . Miscellaneous . | . . . Route ------- -11/Scrapyard -10/Materials (discovered 5 exits: [*Mat x2] / [*Min x2] / *Sub) -10/Subcaves (discovered 2 exits: [*Mat x2]) History --------- Turn | Location | Event 8 | -11/Scrapyard | Discovered new exit (range 14) 138 | -11/Scrapyard | Entered Materials 308 | -10/Materials | Build established: Mutant 377 | -10/Materials | Discovered new exit (range 9) 563 | -10/Materials | Discovered new exit (range 7) 713 | -10/Materials | Discovered new exit (range 12) 929 | -10/Materials | Discovered new exit (range 15) 1063 | -10/Materials | Repaired Lgt. Treads 1287 | -10/Materials | Discovered new exit (range 5) 1311 | -10/Materials | Entered Subcaves 1366 | -10/Subcaves | Discovered new exit (range 7) 1394 | -10/Subcaves | Visited Clippyterm 1407 | -10/Subcaves | A swath of the cavern ceiling suddenly collapsed 1623 | -10/Subcaves | Ambushed by swarm of Subdwellers 1637 | -10/Subcaves | Ambushed by Subdweller buried in earth 1712 | -10/Subcaves | Shifting Twisted Machinery released Battle Rifle 1849 | -10/Subcaves | Disturbed a concealed Subdweller 2012 | -10/Subcaves | Learned location of Zion (-7) 2012 | -10/Subcaves | Met a Zionite searching for "candidates" 2265 | -10/Subcaves | Shifting Twisted Machinery released Sub. Shrapnel Launcher 2507 | -10/Subcaves | Learned location of Storage (-9) 2515 | -10/Subcaves | Learned Materials terminal intel 2820 | -10/Subcaves | Core integrity fell below 50% 3265 | -10/Subcaves | Lost 3 parts (1n2w) 4536 | -10/Subcaves | Ambushed by Subdweller buried in earth 4539 | -10/Subcaves | Ambushed by Subdweller buried in earth 4545 | -10/Subcaves | Ambushed by Subdweller buried in earth 4545 | -10/Subcaves | Discovered new exit (range 15) 4550 | -10/Subcaves | Core integrity fell below 20% 4563 | -10/Subcaves | Destroyed by MJ-K52(R) with Subdweller Machine Gun Last Messages --------------- D6-IE7(R) suffers critical hit (Destroy). HV Slug penetrates Wall. Destroyed Scrap Shield. HV Slug penetrates Earth. HV Slug penetrates Wall. D6-IE7(R) destroyed. HV Slug penetrates AY-4ZB(R). 6K-K58(R): "GOODGOOD!" MJ-K52(R): "ARGHSUB!" HV Slug penetrates 6K-K58(R). 6K-K58(R) suffers critical hit (Destroy). 6K-K58(R) destroyed. HV Slug penetrates MJ-K52(R). MJ-K52(R) knocked back. HV Slug penetrates MJ-K52(R). EXIT=FOUND M2-S8V(R): "ARGHSUB!" Dropped Aluminum Leg. Dropped Seismic Detector. Bore Cannon destroyed. Map ----- +----------------------------------------------------+ | ########?????#### #??? #### | | # #???????????????## ## #??? ## | | ## ##???????????????# #?## #???? % %## # | | ?####????????????????# #?## #??? ## ## | | ?????????????????????# ### ##???# ### ##? | | ?????????????????????# ## #????# #?# ##? | | ?????????????????????# ## #????# #?# #? | | ?????????????????????# ### ###### ### #? | | ????????????????????## ### # # # ### #? | | ????????????????????#" ## ##? | | ???????????????????? " # #?? | | ???????????????????## # # ### #?# | | ???????????????????# ######?## #?# | | ???????????????????# ##??# #?# | | ??????????????????## #### #?# | | ??????????????????# ## ### | | ???????????????????# ; ### ## | | ????????????????????# ## ### ## | | ???????????????????## ## ##### ### | | ???????????????#####; #??## ##?# | | ??????????????## """" #???## ##?? | | ??????????????# " ## ##??# ### | | ?????????????## R ## #??# ## | | ?????????????# R! =! #??## | | ?????????????# ##?## | | ?????????????#; @ ;## #?## | | ????????????# ; #? #?# ## | | ?????????? ; ;#??? #?## #? | | ??????????? ; &&;# ?????# #? | | ??????????? < ##????## #? | | ???????????? ;##??????# ## #? | | ???????????? ;;#???????## ## #? | | ????????????" # ;;; ;###????????#### ##? | | ?????????????#; ;####### ##?????????????###?? | | ?????????????# ???????##??????????????????? | | ?????????????? ;; ???????????????????????????? | | ?????????????? ; ????????????????????????????? | | ???????????????? ###????????????????????????????? | | ?????????????????????????????????????????????????? | | ?????????????????????????????????????????????????? | | ?????????????????????????????????????????????????? | | ?????????????????????????????????????????????????? | | ?????????????????????????????????????????????????? | | ?????????????????????????????????????????????????? | | ?????????????????????????????????????????????????? | | ?????????????????????????????????????????????????? | | ?????????????????????????????????????????????????? | | ?????????????????????????????????????????????????? | | ?????????????????????????????????????????????????? | | ?????????????????????????????????????????????????? | +----------------------------------------------------+ Best States ------------- Heat Dissipation 25 Energy Generation 15 Energy Capacity 250 Matter Stores 300 Matter Capacity 300 Sight Range 16 Terrain Scan Range 14 Terrain Scan Density 10 Armor Coverage 100 Evasion (%) 55 Targeting Accuracy 5 Recoil Reduction 2 Item Schematics ----------------- None Robot Schematics ------------------ None Fabricated ------------ Nothing Alien Tech Used ----------------- None Achievements -------------- None Challenges ------------ None Game ------ Seed DispersionPortableProtection Manual? 0 Play Time 00:25:04 Cumulative 9.0 hours Start 2024.07.25 @ 01:10:58 End 2024.07.25 @ 14:58:07 Sessions 2 Manual Loads 0 Difficulty Rogue Special Mode None Game No. 14 Rogue 14 Adventurer 0 Explorer 0 Win Type - Total 0 Types 0/0/0/0/0/0/0/0/0 Lore% 16 Gallery% 16 Achievement% 14 Wizard Run 0 Options --------- Layout 1 ASCII 0 Keyboard 0 Movement Arrows Keybinds 0 Fullscreen 1 Font 32/SmallcapsGlow Map View 50x35 Zoom Use 0% Tactical HUD 0 Map Filters NONE Filters NONE Steam 1 RUN: 3d057b80-8be3-4dc7-aaa0-31d8b70e0c4d